{"text_format":"1","workbook":"xlsx","n_sheets":7,"sheets":["Main Order Form","Sheet1","CoS","VSAT data","Portfolio Details ","Multiple Site Info Sheet","Parameters"],"not_rendered":{"charts":0,"images":1,"macros":1,"external_links":0,"defined_names":17,"comments":0,"pivot_tables":0},"unopened":[],"bounds":{"document_bytes":16777216,"sheet_cells":100000,"rows_first":2000,"rows_last":500,"rows_between":2000,"halvings":0,"cell_chars":16384,"cell_head_chars":4096},"cells_cut":0,"cells_raw":0,"read":"whole","date_system":"1900"}

{"sheet":"Main Order Form","index":0,"n_rows":70,"n_cols":11,"rows_kept":70,"cut":false,"hidden":false,"merged":[[69,2,69,6],[63,7,63,10],[64,2,64,5],[66,2,66,5],[63,2,63,5],[65,2,65,5],[65,7,65,10],[66,7,66,10],[64,7,64,10],[0,1,0,10],[4,1,4,10],[5,1,6,10],[13,3,13,7],[9,1,9,10],[10,1,10,10],[1,8,1,10],[12,9,12,10],[12,3,12,7],[7,1,8,2],[12,1,12,2],[13,1,13,2],[13,9,13,10],[11,1,11,10],[7,8,7,9],[14,3,14,7],[15,3,15,7],[15,1,15,2],[16,8,16,10],[14,9,14,10],[14,1,14,2],[17,1,17,2],[55,1,55,2],[15,9,15,10],[17,3,17,10],[18,4,18,10],[51,2,51,3],[16,1,16,2],[34,2,34,3],[35,2,35,3],[36,2,36,3],[37,2,37,3],[38,2,38,3],[39,2,39,3],[34,5,34,6],[35,5,35,6],[16,3,16,7],[19,1,19,10],[20,1,20,10],[46,1,46,10],[26,3,26,6],[26,8,26,9],[27,1,27,10],[21,1,21,10],[22,1,22,10],[23,3,23,6],[23,8,23,9],[24,3,24,6],[24,8,24,9],[36,5,36,6],[37,5,37,6],[38,5,38,6],[39,5,39,6],[25,3,25,6],[25,8,25,9],[48,1,48,10],[50,2,50,3],[50,5,50,6],[31,1,31,10],[33,1,33,10],[29,1,29,10],[49,2,49,3],[49,5,49,6],[40,2,40,3],[41,2,41,3],[42,2,42,3],[43,2,43,3],[44,2,44,3],[40,5,40,6],[41,5,41,6],[42,5,42,6],[43,5,43,6],[44,5,44,6],[61,1,61,10],[59,1,59,10],[51,5,51,6],[55,3,56,10],[57,3,58,10],[60,1,60,10]]}
[]
[]
[]
[]
[null,"LOCAL DATACOM ORDER FORM"]
[null,"This Order Form should be read in conjunction with the attached Terms and Conditions for the provision of National Data Communication Services and any attached Multiple Site Information Sheet (if any)."]
[]
[null,"Request Type:"]
[]
[]
[null,"1.  Customer Details"]
[]
[null,"Company Name",null,null,null,null,null,null,"Division"]
[null,"Business Type",null,null,null,null,null,null,"CR No."]
[null,"Name of Representative",null,null,null,null,null,null,"Tel."]
[null,"Job Title",null,null,null,null,null,null,"Fax."]
[null,"Email "]
[null,"Billing Address"]
[null,"Billing Account No. (where applicable)"]
[]
[null,"2. Site No. 1 Details"]
[]
[null,"Site Address:"]
[null,"Flat No.",null,null,null,null,null,"Road."]
[null,"Bldg.No. ",null,null,null,null,null,"Block"]
[null,"Contact Name",null,null,null,null,null,"Email"]
[null,"Tel No.",null,null,null,null,null,"Fax"]
[]
[null,"3. Type of Services and Charges Details"]
[]
[null,"Total number of sites",null,"<Select>",null,"Multiple site information sheet attached?"]
[]
[null,"3.1 Local MPLS & Inet Dedicated Access"]
[]
[null,"Existing Tag","Type of Service",null,"Speed","Contract Period",null,"Site No.","Currency","Monthly Charge","Once-off Charge"]
[null,null,"<Select>",null,"<Select>","<Select>",null,"<Select>","BHD"]
[null,null,null,null,null,null,null,null,"BHD"]
[null,null,null,null,null,null,null,null,"BHD"]
[null,null,null,null,null,null,null,null,"BHD"]
[null,null,null,null,null,null,null,null,"BHD"]
[null,null,null,null,null,null,null,null,"BHD"]
[null,null,null,null,null,null,null,null,"BHD"]
[null,null,null,null,null,null,null,null,"BHD"]
[null,null,null,null,null,null,null,null,"BHD"]
[null,null,null,null,null,null,null,null,"BHD"]
[null,null,null,null,null,null,null,null,"Total ",{"$f":"SUM(J36:J45)","v":0},{"$f":"SUM(K36:K45)","v":0}]
[]
[null,"3.2 Backup Options"]
[]
[null,"Existing Tag","Type of Service",null,"Speed","Contract Period",null,"Site No.","Currency","Monthly Charge","Once-off Charge"]
[null,null,"<Select>",null,"<Select>","<Select>",null,"<Select>","BHD"]
[null,null,null,null,null,null,null,null,"BHD"]
[null,null,null,null,null,null,null,null,"Total ",{"$f":"SUM(J51:J52)","v":0},{"$f":"SUM(K51:K52)","v":0}]
[]
[null,null,null,null,null,null,null,null,"Grand Total:",{"$f":"J46+J53","v":0},{"$f":"K46+K53","v":0}]
[null,"Total amount (in words)"]
[]
[null,"Remarks:"]
[]
[]
[null,"4. Agreement"]
[null,"Collectively, this Order Form, the attached Terms and conditions, the Multiple Site Information Sheet (if any), form the Agreement for the provision of the National Data Communication Services by Batelco to the Customer detailed in this Order Form. By signing below, the Customer, declares that he/she read, understood and accepted the terms and conditions of the entire Agreement."]
[null,null,"For and on behalf of the Customer:",null,null,null,null,"For and on behalf of Batelco:"]
[null,"Signature",null,null,null,null,"Signature"]
[null,"Name",null,null,null,null,"Name"]
[null,"Title",null,null,null,null,"Title"]
[null,"Date",null,null,null,null,"Date"]
[]
[]
[null,null,"Terms and Conditions for the provision of MPLS and Inet Dedicated Services"]

{"sheet":"Sheet1","index":1,"n_rows":10,"n_cols":9,"rows_kept":10,"cut":false,"hidden":true,"merged":[[0,4,0,7]]}
["MPLS","GMPLS","Narrow MPLS",null,"Port profile %"]
["Vedio","Real time ","Real time ","Profiles","RT voice","RT video","Mission critical","Best Effort","Price"]
["Mission Critical","Mission Cretical ","Mission Cretical ","Standard",null,null,null,100,"FREE"]
["Best Effort ","Standard ","Standard ","classic",null,null,25,75,100]
[null,"Best Effort","Best Effort","classic 2",null,null,100,null,400]
[null,null,null,"Business",null,null,50,50,200]
[null,null,null,"Advanced",null,null,75,25,300]
[null,null,null,"interactive",null,25,25,50,220]
[null,null,null,"executive",null,25,50,25,320]
[null,null,null,"FIRST",25,25,25,25,"TBA"]

{"sheet":"CoS","index":2,"n_rows":68,"n_cols":15,"rows_kept":68,"cut":false,"hidden":true,"merged":[]}
[]
["Main","CoS","Real Time Voice","Real Time Video ","Mission critical","Best Effort","Price",null,"Main",0,"RT","MC","ST","BE"]
[1,"Standard",null,null,null,1,0,null,null,0.1,1,1,1,1]
[2,"Classic",null,null,0.25,0.75,100,null,null,0.2,{"$f":"K3-1","v":0},{"$f":"L3-1","v":0},{"$f":"M3-1","v":0},{"$f":"N3-1","v":0},{"$f":"SUM(K4:N4)","v":0}]
[3,"Classic 2",null,null,1,null,400,null,null,0.3]
[4,"Business",null,null,0.5,0.5,200,null,null,0.4]
[5,"Advanced",null,null,0.75,0.25,300,null,null,0.5]
[6,"Interactive",null,0.25,0.25,0.5,220,null,null,0.6]
[7,"Executive",null,0.25,0.5,0.25,320,null,null,0.7]
[8,"First",0.25,0.25,0.25,0.25,"TBA",null,null,0.8]
[null,4,null,null,null,null,null,null,null,0.9]
[null,null,null,null,null,null,null,null,null,1]
["Multiples 1","CoS","Real Time Voice","Real Time Video ","Mission critical","Best Effort","Price"]
[1,"Standard",null,null,null,1,0]
[2,"Classic",null,null,0.25,0.75,100,null,"Multiples 1",0,"RT","MC","ST","BE"]
[3,"Classic 2",null,null,1,null,400,null,null,0.1,1,1,1,1]
[4,"Business",null,null,0.5,0.5,200,null,null,0.2,{"$f":"K16-1","v":0},{"$f":"L16-1","v":0},{"$f":"M16-1","v":0},{"$f":"N16-1","v":0},{"$f":"SUM(K17:N17)","v":0}]
[5,"Advanced",null,null,0.75,0.25,300,null,null,0.3]
[6,"Interactive",null,0.25,0.25,0.5,220,null,null,0.4]
[7,"Executive",null,0.25,0.5,0.25,320,null,null,0.5]
[8,"First",0.25,0.25,0.25,0.25,"TBA",null,null,0.6]
[null,2,null,null,null,null,null,null,null,0.7]
[null,null,null,null,null,null,null,null,null,0.8]
["Multiples 2","CoS","Real Time Voice","Real Time Video ","Mission critical","Best Effort","Price",null,null,0.9]
[1,"Standard",null,null,null,1,0,null,null,1]
[2,"Classic",null,null,0.25,0.75,100]
[3,"Classic 2",null,null,1,null,400]
[4,"Business",null,null,0.5,0.5,200,null,"Multiples 2",0,"RT","MC","ST","BE"]
[5,"Advanced",null,null,0.75,0.25,300,null,null,0.1,1,1,1,1]
[6,"Interactive",null,0.25,0.25,0.5,220,null,null,0.2,{"$f":"K29-1","v":0},{"$f":"L29-1","v":0},{"$f":"M29-1","v":0},{"$f":"N29-1","v":0},{"$f":"SUM(K30:N30)","v":0}]
[7,"Executive",null,0.25,0.5,0.25,320,null,null,0.3]
[8,"First",0.25,0.25,0.25,0.25,"TBA",null,null,0.4]
[null,1,null,null,null,null,null,null,null,0.5]
[null,null,null,null,null,null,null,null,null,0.6]
["Multiples 3","CoS","Real Time Voice","Real Time Video ","Mission critical","Best Effort","Price",null,null,0.7]
[1,"Standard",null,null,null,1,0,null,null,0.8]
[2,"Classic",null,null,0.25,0.75,100,null,null,0.9]
[3,"Classic 2",null,null,1,null,400,null,null,1]
[4,"Business",null,null,0.5,0.5,200]
[5,"Advanced",null,null,0.75,0.25,300]
[6,"Interactive",null,0.25,0.25,0.5,220,null,"Multiples 3",0,"RT","MC","ST","BE"]
[7,"Executive",null,0.25,0.5,0.25,320,null,null,0.1,1,1,1,1]
[8,"First",0.25,0.25,0.25,0.25,"TBA",null,null,0.2,{"$f":"K42-1","v":0},{"$f":"L42-1","v":0},{"$f":"M42-1","v":0},{"$f":"N42-1","v":0},{"$f":"SUM(K43:N43)","v":0}]
[null,2,null,null,null,null,null,null,null,0.3]
[null,null,null,null,null,null,null,null,null,0.4]
[null,null,null,null,null,null,null,null,null,0.5]
["Multiples 4","CoS","Real Time Voice","Real Time Video ","Mission critical","Best Effort","Price",null,null,0.6]
[1,"Standard",null,null,null,1,0,null,null,0.7]
[2,"Classic",null,null,0.25,0.75,100,null,null,0.8]
[3,"Classic 2",null,null,1,null,400,null,null,0.9]
[4,"Business",null,null,0.5,0.5,200,null,null,1]
[5,"Advanced",null,null,0.75,0.25,300]
[6,"Interactive",null,0.25,0.25,0.5,220]
[7,"Executive",null,0.25,0.5,0.25,320,null,"Multiples 4",0,"RT","MC","ST","BE"]
[8,"First",0.25,0.25,0.25,0.25,"TBA",null,null,0.1,1,1,1,1]
[null,1,null,null,null,null,null,null,null,0.2,{"$f":"K55-1","v":0},{"$f":"L55-1","v":0},{"$f":"M55-1","v":0},{"$f":"N55-1","v":0},{"$f":"SUM(K56:N56)","v":0}]
[null,null,null,null,null,null,null,null,null,0.3]
[null,null,null,null,null,null,null,null,null,0.4]
["Multiples 5","CoS","Real Time Voice","Real Time Video ","Mission critical","Best Effort","Price",null,null,0.5]
[1,"Standard",null,null,null,1,0,null,null,0.6]
[2,"Classic",null,null,0.25,0.75,100,null,null,0.7]
[3,"Classic 2",null,null,1,null,400,null,null,0.8]
[4,"Business",null,null,0.5,0.5,200,null,null,0.9]
[5,"Advanced",null,null,0.75,0.25,300,null,null,1]
[6,"Interactive",null,0.25,0.25,0.5,220]
[7,"Executive",null,0.25,0.5,0.25,320]
[8,"First",0.25,0.25,0.25,0.25,"TBA"]
[null,5]

{"sheet":"VSAT data","index":3,"n_rows":49,"n_cols":11,"rows_kept":49,"cut":false,"hidden":true,"merged":[[5,6,5,7],[5,8,5,9],[14,6,14,7],[14,8,14,9],[44,6,44,7],[44,8,44,9],[24,6,24,7],[24,8,24,9],[34,6,34,7],[34,8,34,9]]}
[]
[]
["Main","Type","Speed","Package","Down"]
[null,null,null,null,null,null,1,1,1,1,{"$f":"SUM(G4:J4)","v":4}]
[null,"TDMA Full CIR","128k","Standard","256k/128k",null,{"$f":"IF(G4>1,1,0)","v":0},{"$f":"IF(H4>1,1,0)","v":0},{"$f":"IF(I4>1,1,0)","v":0},{"$f":"IF(J4>1,1,0)","v":0},{"$f":"SUM(G5:J5)","v":0}]
[null,"Dedicated SCPC","256k","Business Plus","512k/128k",null,{"$f":"G5+H5","v":0},null,{"$f":"I5+J5","v":0}]
[null,null,"384k","Premium","1024k/256k",null,{"$f":"IF(G6=2,\"complete\",IF(G6=1,\"incomplete\",\"error\"))","v":"error"},null,{"$f":"IF(I6=2,\"complete\",IF(I6=1,\"incomplete\",\"error\"))","v":"error"},null,{"$f":"IF(OR(AND(G7=\"complete\",I7=\"error\"),AND(G7=\"error\",I7=\"Complete\")),\"ok\",\"error\")","v":"error"}]
[null,null,"512k",null,"2048k/512k"]
[null,null,"1MB"]
[null,null,"2MB"]
[]
["Multiple 1","Type","Speed","Package","Down"]
[null,null,null,null,null,null,1,1,1,1,{"$f":"SUM(G13:J13)","v":4}]
[null,"TDMA Full CIR","128k","Standard","512k/128k",null,{"$f":"IF(G13>1,1,0)","v":0},{"$f":"IF(H13>1,1,0)","v":0},{"$f":"IF(I13>1,1,0)","v":0},{"$f":"IF(J13>1,1,0)","v":0},{"$f":"SUM(G14:J14)","v":0}]
[null,"Dedicated SCPC","256k","Business Plus","1024k/256k",null,{"$f":"G14+H14","v":0},null,{"$f":"I14+J14","v":0}]
[null,null,"384k","Premium","2048k/512k",null,{"$f":"IF(G15=2,\"complete\",IF(G15=1,\"incomplete\",\"error\"))","v":"error"},null,{"$f":"IF(I15=2,\"complete\",IF(I15=1,\"incomplete\",\"error\"))","v":"error"},null,{"$f":"IF(OR(AND(G16=\"complete\",I16=\"error\"),AND(G16=\"error\",I16=\"Complete\")),\"ok\",\"error\")","v":"error"}]
[null,null,"512k"]
[null,null,"1MB"]
[null,null,"2MB"]
[]
[]
["Multiple 2","Type","Speed","Package","Down"]
[null,null,null,null,null,null,1,1,1,1,{"$f":"SUM(G23:J23)","v":4}]
[null,"TDMA Full CIR","128k","Standard","512k/128k",null,{"$f":"IF(G23>1,1,0)","v":0},{"$f":"IF(H23>1,1,0)","v":0},{"$f":"IF(I23>1,1,0)","v":0},{"$f":"IF(J23>1,1,0)","v":0},{"$f":"SUM(G24:J24)","v":0}]
[null,"Dedicated SCPC","256k","Business Plus","1024k/256k",null,{"$f":"G24+H24","v":0},null,{"$f":"I24+J24","v":0}]
[null,null,"384k","Premium","2048k/512k",null,{"$f":"IF(G25=2,\"complete\",IF(G25=1,\"incomplete\",\"error\"))","v":"error"},null,{"$f":"IF(I25=2,\"complete\",IF(I25=1,\"incomplete\",\"error\"))","v":"error"},null,{"$f":"IF(OR(AND(G26=\"complete\",I26=\"error\"),AND(G26=\"error\",I26=\"Complete\")),\"ok\",\"error\")","v":"error"}]
[null,null,"512k"]
[null,null,"1MB"]
[null,null,"2MB"]
[]
[]
["Multiple 3","Type","Speed","Package","Down"]
[null,null,null,null,null,null,1,1,1,1,{"$f":"SUM(G33:J33)","v":4}]
[null,"TDMA Full CIR","128k","Standard","512k/128k",null,{"$f":"IF(G33>1,1,0)","v":0},{"$f":"IF(H33>1,1,0)","v":0},{"$f":"IF(I33>1,1,0)","v":0},{"$f":"IF(J33>1,1,0)","v":0},{"$f":"SUM(G34:J34)","v":0}]
[null,"Dedicated SCPC","256k","Business Plus","1024k/256k",null,{"$f":"G34+H34","v":0},null,{"$f":"I34+J34","v":0}]
[null,null,"384k","Premium","2048k/512k",null,{"$f":"IF(G35=2,\"complete\",IF(G35=1,\"incomplete\",\"error\"))","v":"error"},null,{"$f":"IF(I35=2,\"complete\",IF(I35=1,\"incomplete\",\"error\"))","v":"error"},null,{"$f":"IF(OR(AND(G36=\"complete\",I36=\"error\"),AND(G36=\"error\",I36=\"Complete\")),\"ok\",\"error\")","v":"error"}]
[null,null,"512k"]
[null,null,"1MB"]
[null,null,"2MB"]
[]
[]
["Multiple 4","Type","Speed","Package","Down"]
[null,null,null,null,null,null,1,1,1,1,{"$f":"SUM(G43:J43)","v":4}]
[null,"TDMA Full CIR","128k","Standard","512k/128k",null,{"$f":"IF(G43>1,1,0)","v":0},{"$f":"IF(H43>1,1,0)","v":0},{"$f":"IF(I43>1,1,0)","v":0},{"$f":"IF(J43>1,1,0)","v":0},{"$f":"SUM(G44:J44)","v":0}]
[null,"Dedicated SCPC","256k","Business Plus","1024k/256k",null,{"$f":"G44+H44","v":0},null,{"$f":"I44+J44","v":0}]
[null,null,"384k","Premium","2048k/512k",null,{"$f":"IF(G45=2,\"complete\",IF(G45=1,\"incomplete\",\"error\"))","v":"error"},null,{"$f":"IF(I45=2,\"complete\",IF(I45=1,\"incomplete\",\"error\"))","v":"error"},null,{"$f":"IF(OR(AND(G46=\"complete\",I46=\"error\"),AND(G46=\"error\",I46=\"Complete\")),\"ok\",\"error\")","v":"error"}]
[null,null,"512k"]
[null,null,"1MB"]
[null,null,"2MB"]

{"sheet":"Portfolio Details ","index":4,"n_rows":13,"n_cols":6,"rows_kept":13,"cut":false,"hidden":true,"merged":[[0,1,0,4]]}
[null,"Port profile %"]
["Profiles","Real Time","Standard Date ","Mission critical","Best Effort","Price"]
[null,0,0,0,0]
[null,0.1,0.1,0.1,0.1]
[null,0.2,0.2,0.2,0.2]
[null,0.3,0.3,0.3,0.3]
[null,0.4,0.4,0.4,0.4]
[null,null,0.5,0.5,0.5]
[null,null,0.6,0.6,0.6]
[null,null,null,null,0.7]
[null,null,null,null,0.8]
[null,null,null,null,0.9]
[null,null,null,null,1]

{"sheet":"Multiple Site Info Sheet","index":5,"n_rows":71,"n_cols":8,"rows_kept":71,"cut":false,"hidden":false,"merged":[[0,1,0,10],[1,8,1,10],[4,1,4,10],[5,1,6,10],[20,3,20,6],[20,8,20,9],[14,3,14,6],[14,8,14,9],[15,1,15,10],[10,1,10,10],[11,3,11,6],[11,8,11,9],[12,3,12,6],[12,8,12,9],[13,3,13,6],[13,8,13,9],[17,1,17,10],[16,1,16,10],[18,1,18,10],[19,3,19,6],[19,8,19,9],[30,3,30,6],[30,8,30,9],[31,1,31,10],[34,1,34,10],[35,3,35,6],[35,8,35,9],[7,1,7,10],[8,1,8,10],[9,1,9,10],[21,3,21,6],[21,8,21,9],[29,3,29,6],[22,3,22,6],[22,8,22,9],[23,1,23,10],[28,3,28,6],[28,8,28,9],[29,8,29,9],[24,1,24,10],[25,1,25,10],[26,1,26,10],[27,3,27,6],[27,8,27,9],[32,1,32,10],[33,1,33,10],[43,8,43,9],[44,3,44,6],[44,8,44,9],[45,3,45,6],[45,8,45,9],[46,3,46,6],[46,8,46,9],[42,1,42,10],[43,3,43,6],[40,1,40,10],[38,3,38,6],[38,8,38,9],[39,1,39,10],[41,1,41,10],[36,3,36,6],[36,8,36,9],[37,3,37,6],[37,8,37,9],[54,3,54,6],[54,8,54,9],[47,1,47,10],[48,1,48,10],[49,1,49,10],[50,1,50,10],[51,3,51,6],[51,8,51,9],[60,3,60,6],[60,8,60,9],[52,3,52,6],[52,8,52,9],[53,3,53,6],[53,8,53,9],[61,3,61,6],[61,8,61,9],[62,3,62,6],[62,8,62,9],[55,1,55,10],[56,1,56,10],[57,1,57,10],[58,1,58,10],[59,3,59,6],[59,8,59,9],[71,1,71,10],[68,3,68,6],[68,8,68,9],[69,3,69,6],[69,8,69,9],[70,3,70,6],[70,8,70,9],[63,1,63,10],[64,1,64,10],[65,1,65,10],[66,1,66,10],[67,3,67,6],[67,8,67,9]]}
[]
[]
[]
[]
[null,"MULTIPLE SITE INFORMATION SHEET"]
[null,"This Multiple Site Information Sheet should be read in conjunction with the Local Datacom Order Form and the attached Terms and Conditions for the provision of Natioanl Data Communication Services."]
[]
[]
[null,"Site No. 2 Details"]
[]
[null,"Site Address:"]
[null,"Flat No.",null,null,null,null,null,"Road."]
[null,"Bldg.No. ",null,null,null,null,null,"Block"]
[null,"Contact Name",null,null,null,null,null,"Email"]
[null,"Tel No.",null,null,null,null,null,"Fax"]
[]
[null,"Site No. 3 Details"]
[]
[null,"Site Address:"]
[null,"Flat No.",null,null,null,null,null,"Road."]
[null,"Bldg.No. ",null,null,null,null,null,"Block"]
[null,"Contact Name",null,null,null,null,null,"Email"]
[null,"Tel No.",null,null,null,null,null,"Fax"]
[]
[null,"Site No. 4 Details"]
[]
[null,"Site Address:"]
[null,"Flat No.",null,null,null,null,null,"Road."]
[null,"Bldg.No. ",null,null,null,null,null,"Block"]
[null,"Contact Name",null,null,null,null,null,"Email"]
[null,"Tel No.",null,null,null,null,null,"Fax"]
[]
[null,"Site No. 5 Details"]
[]
[null,"Site Address:"]
[null,"Flat No.",null,null,null,null,null,"Road."]
[null,"Bldg.No. ",null,null,null,null,null,"Block"]
[null,"Contact Name",null,null,null,null,null,"Email"]
[null,"Tel No.",null,null,null,null,null,"Fax"]
[]
[null,"Site No. 6 Details"]
[]
[null,"Site Address:"]
[null,"Flat No.",null,null,null,null,null,"Road."]
[null,"Bldg.No. ",null,null,null,null,null,"Block"]
[null,"Contact Name",null,null,null,null,null,"Email"]
[null,"Tel No.",null,null,null,null,null,"Fax"]
[]
[null,"Site No. 7 Details"]
[]
[null,"Site Address:"]
[null,"Flat No.",null,null,null,null,null,"Road."]
[null,"Bldg.No. ",null,null,null,null,null,"Block"]
[null,"Contact Name",null,null,null,null,null,"Email"]
[null,"Tel No.",null,null,null,null,null,"Fax"]
[]
[null,"Site No. 8 Details"]
[]
[null,"Site Address:"]
[null,"Flat No.",null,null,null,null,null,"Road."]
[null,"Bldg.No. ",null,null,null,null,null,"Block"]
[null,"Contact Name",null,null,null,null,null,"Email"]
[null,"Tel No.",null,null,null,null,null,"Fax"]
[]
[null,"Site No. 9 Details"]
[]
[null,"Site Address:"]
[null,"Flat No.",null,null,null,null,null,"Road."]
[null,"Bldg.No. ",null,null,null,null,null,"Block"]
[null,"Contact Name",null,null,null,null,null,"Email"]
[null,"Tel No.",null,null,null,null,null,"Fax"]

{"sheet":"Parameters","index":6,"n_rows":46,"n_cols":19,"rows_kept":46,"cut":false,"hidden":true,"merged":[]}
[]
["P2P Speed","L2 & L3 Speed","Inet Dedicated Speeds",null,"Products",null,"IP ADDRESSES",null,"Service Period (Contract Period)",null,"Type of Service (Backup)",null,"Site Number",null,"4G LTE Backup",null,"Broadband",null,"Request Type"]
["<Select>","<Select>","<Select>",null,"<Select>",null,"<Select>",null,"<Select>",null,"<Select>",null,"<Select>",null,"<Select>",null,"<Select>",null,"<Select>"]
["64K","64 K","512 K",null,"L3 Full Mesh",null,"1 IP",null,"Open Ended",null,"L2 Hub & Spoke",null,1,null,"20GB",null,"1Mb/512Kb",null,"New"]
["128K","128 K","1 Mb",null,"L2 Hub & Spoke",null,"8 IPs",null,"Fixed 1 Year Term",null,"L3 Full Mesh",null,2,null,"50GB",null,"2Mb/1Mb",null,"Upgrade"]
["256K","256 K","2 Mb",null,"P2P",null,null,null,"Fixed 2 Year Term",null,"Microwave Backup",null,3,null,null,null,"8Mb/2Mb",null,"Downgrade"]
["512K","512 K","3 Mb",null,"Inet Dedicated Port Only",null,null,null,"Fixed 3 Year Term",null,"Broadband Backup",null,4,null,null,null,"10Mb/2Mb",null,"Cease"]
["1Mb","1 Mb","4 Mb",null,"IP Address",null,null,null,"Temporary (specify)",null,"4G LTE Backup",null,5,null,null,null,"16Mb/2Mb",null,"Renew"]
["2Mb","2 Mb","5 Mb",null,null,null,null,null,null,null,null,null,6,null,null,null,null,null,"Internal Relocation (Same floor)"]
["4Mb","4 Mb","6 Mb",null,null,null,null,null,null,null,null,null,7,null,null,null,null,null,"External Relocation "]
["8Mb","8 Mb","7 Mb",null,null,null,null,null,null,null,null,null,8,null,null,null,null,null,"Others (please specify)"]
["10Mb","10 Mb","8 Mb",null,null,null,null,null,null,null,null,null,9]
["20Mb","15 Mb","9 Mb",null,null,null,null,null,null,null,null,null,10]
["25Mb","20 Mb","10 Mb"]
["50Mb","25 Mb","12 Mb"]
["100Mb","50 Mb","14 Mb"]
["200Mb","75 Mb","16 Mb"]
["500Mb","100 Mb","18 Mb"]
["1Gb","150 Mb","20 Mb"]
[null,"200 Mb","25 Mb"]
[null,"300 Mb","30 Mb"]
[null,"400 Mb","35 Mb"]
[null,"500 Mb","40 Mb"]
[null,"600 Mb","45 Mb"]
[null,"700 Mb","50 Mb"]
[null,"800 Mb","60 Mb"]
[null,"900 Mb","70 Mb"]
[null,"1 Gb","80 Mb"]
[null,null,"90 Mb"]
[null,null,"100 Mb"]
[null,null,"120 Mb"]
[null,null,"140 Mb"]
[null,null,"160 Mb"]
[null,null,"180 Mb"]
[null,null,"200 Mb"]
[null,null,"250 Mb"]
[null,null,"300 Mb"]
[null,null,"350 Mb"]
[null,null,"400 Mb"]
[null,null,"450 Mb"]
[null,null,"500 Mb"]
[null,null,"600 Mb"]
[null,null,"700 Mb"]
[null,null,"800 Mb"]
[null,null,"900 Mb"]
[null,null,"1 Gb"]